bitfinex-derivatives/quotes_ETHF0:USTF0_20250926
["timestamp","ask_amount","ask_price","bid_price","bid_amount"]
[1758915633008,0.269,4015.1,4015.0,1.0954]
[1758915633210,0.00190309,4015.1,4015.0,1.09856711]
[1758915634512,0.00190309,4015.1,4015.0,10.18359093]
[1758915635105,0.00190309,4015.1,4015.0,11.52128295]
[1758915635310,0.00190309,4015.1,4015.0,10.18359093]
[1758915635712,0.00190309,4015.1,4015.0,6.97579093]
[1758915635919,0.90200309,4015.1,4015.0,0.39216711]
[1758915636115,0.51850309,4015.1,4015.0,0.66446711]
[1758915636320,0.51850309,4015.1,4015.0,1.09856711]
[1758915636321,0.27090309,4015.1,4015.0,1.09856711]
[1758915637514,0.90200309,4015.1,4015.0,0.82546711]
[1758915637817,0.51850309,4015.1,4015.0,0.82546711]
[1758915638019,0.51850309,4015.1,4015.0,1.09856711]
[1758915638212,0.27090309,4015.1,4015.0,1.09856711]
[1758915638519,0.00190309,4015.1,4015.0,1.09856711]
[1758915639014,0.90200309,4015.1,4015.0,0.82546711]
[1758915639317,0.90200309,4015.1,4015.0,0.66446711]
[1758915639515,0.90200309,4015.1,4015.0,0.00316711]
[1758915639516,5.90200309,4015.1,4015.0,0.00316711]
[1758915639820,0.44804,4014.3,4014.2,0.6613]
[1758915640120,0.96464,4014.3,4014.2,0.6613]
[1758915640617,0.5166,4014.3,4014.2,0.93683904]
[1758915641009,3.2078,4014.6,4014.5,0.4333]
[1758915641216,3.7244,4014.6,4014.5,1.0954]
[1758915641806,3.7244,4014.6,4014.5,1.3544]
[1758915642415,4.17241,4014.6,4014.5,1.3544]
[1758915643520,4.54251,4014.6,4014.5,0.259]
[1758915644810,0.97094,4014.3,4014.2,0.00243904]
[1758915645017,0.97101,4013.7,4013.6,3.6015]
[1758915645214,0.97101,4013.7,4013.6,4.1318]
[1758915645712,0.97101,4013.7,4013.6,0.924]
[1758915645909,1.08041,4013.7,4013.6,0.00305317]
[1758915646111,1.34111,4013.7,4013.6,0.00305317]
[1758915646716,6.34111,4013.7,4013.6,0.00305317]
[1758915646912,1.34114,4013.4,4013.3,0.259]
[1758915647110,0.2607,4012.7,4012.6,0.2713]
[1758915647321,0.2607,4012.7,4012.6,1.1796]
[1758915647615,3.5779,4013.2,4012.7,0.3937]
[1758915647807,4.54897,4013.2,4013.1,0.2713]
[1758915648009,4.17887,4013.2,4013.1,0.665]
[1758915649016,4.54897,4013.2,4013.1,0.3937]
[1758915649909,4.17887,4013.2,4013.1,0.665]
[1758915653621,1.34121,4012.8,4012.7,0.00254565]
[1758915654421,0.97124,4011.6,4011.5,0.8275]
[1758915654625,0.97124,4011.6,4011.5,0.665]
[1758915654626,1.34134,4011.6,4011.5,0.665]
[1758915655325,0.9739076,4011.6,4011.5,0.66775196]
[1758915655925,0.5255676,4011.6,4011.5,1.08585196]
[1758915656128,0.9739076,4011.6,4011.5,1.08585196]
[1758915656327,0.5255676,4011.6,4011.5,1.08585196]
[1758915656821,3.2078,4012.2,4011.5,9.29365196]
[1758915657020,0.44823,4012.6,4012.5,0.1625]
[1758915657220,0.44823,4012.6,4012.5,0.5562]
[1758915657420,0.44827,4012.3,4012.1,0.3937]
[1758915657628,0.44827,4012.3,4012.2,0.6527]
[1758915657824,0.3701,4012.6,4011.6,0.3937]
[1758915657825,0.44833,4011.7,4011.6,0.3937]
[1758915658129,0.81843,4011.7,4011.6,0.3937]
[1758915658324,0.44834,4011.6,4011.5,0.00275196]
[1758915658525,0.81844,4011.6,4011.5,0.00275196]
[1758915660333,1.12097,4011.3,4010.6,0.3937]
[1758915660632,1.12097,4011.3,4010.0,5.27539871]
[1758915660633,0.44847,4010.5,4010.3,0.3937]
[1758915661027,0.44848,4010.4,4010.2,0.259]
[1758915661221,0.44848,4010.4,4010.3,0.3937]
[1758915661531,0.3701,4010.4,4010.3,0.00305172]
[1758915661827,0.3701,4010.4,4010.3,0.39675172]
[1758915662224,3.2078,4010.7,4010.3,0.00305172]
[1758915662428,0.44847,4010.5,4010.3,0.39675172]
[1758915662629,0.81857,4010.5,4010.3,0.39675172]
[1758915662932,0.3701,4010.4,4010.3,0.39675172]
[1758915663436,0.3701,4010.4,4010.3,0.00305172]
[1758915664129,5.3701,4010.4,4010.3,0.00305172]
[1758915666935,14.9201,4010.4,4009.3,0.259]
[1758915667131,0.4486,4009.4,4009.3,0.6486]
[1758915667329,3.2078,4009.5,4009.4,0.3896]
[1758915667732,3.2078,4009.5,4009.4,0.892]
[1758915667940,3.21061703,4009.5,4009.4,1.34369412]
[1758915668138,3.21061703,4009.5,4009.4,0.89509412]
[1758915669640,3.21061703,4009.5,4009.4,1.34369412]
[1758915669833,3.21061703,4009.5,4009.4,6.34369412]
[1758915670234,0.00281703,4009.5,4009.4,11.45659283]
[1758915671237,0.00281703,4009.5,4009.4,11.00799283]
[1758915671843,0.00281703,4009.5,4009.4,11.71559283]
[1758915675028,0.00281703,4009.5,4009.4,5.89509412]
[1758915675232,0.48781703,4009.5,4009.4,1.15409412]
[1758915676229,0.24501703,4009.5,4009.4,1.15409412]
[1758915676432,0.00281703,4009.5,4009.4,1.60269412]
[1758915676630,0.00281703,4009.5,4009.4,6.71559283]
[1758915677138,0.00281703,4009.5,4009.4,11.71559283]
[1758915678037,0.00281703,4009.5,4009.4,11.26699283]
[1758915678240,0.00281703,4009.5,4009.4,11.00799283]
[1758915678437,0.00281703,4009.5,4009.4,11.26699283]
[1758915678634,0.00281703,4009.5,4009.4,1.15409412]
[1758915679032,4.49800703,4009.5,4009.4,0.00309412]
[1758915679236,4.49800703,4009.5,4009.4,0.26209412]
[1758915679438,4.49800703,4009.5,4009.4,0.00309412]
[1758915679643,4.49800703,4009.5,4009.4,0.37219412]
[1758915679841,4.14420703,4009.5,4009.4,0.62629412]
[1758915680042,4.14420703,4009.5,4009.4,0.88939412]
[1758915680243,3.69561703,4009.5,4009.4,0.88939412]
[1758915680840,3.21061703,4009.5,4009.4,0.88939412]
[1758915681648,3.21061703,4009.5,4009.4,1.33799412]
[1758915681849,3.21061703,4009.5,4009.4,0.88939412]
[1758915682550,3.45281703,4009.5,4009.4,1.14839412]
[1758915683349,3.21061703,4009.5,4009.4,1.14839412]
[1758915683552,3.21061703,4009.5,4009.4,1.59699412]
[1758915683748,3.2078,4010.2,4010.1,0.8863]
[1758915684053,3.89852,4010.2,4010.1,1.1453]
[1758915684252,4.49512,4010.2,4010.1,0.6232]
[1758915684546,1.28736,4009.8,4009.5,0.1531]
[1758915684850,1.28737,4009.7,4009.6,0.6281]
[1758915685042,1.28737,4009.7,4009.6,0.8822]
[1758915685244,0.8388,4009.7,4009.6,0.8822]
[1758915685444,1.28737,4009.7,4009.6,0.8822]
[1758915685951,0.8388,4009.7,4009.6,0.8822]
[1758915686245,0.485,4009.7,4009.6,0.8863]
[1758915686451,0.485,4009.7,4009.6,1.1453]
[1758915686851,0.2422,4009.7,4009.6,1.1453]
[1758915687353,0.33856455,4009.7,4009.6,1.1453]
[1758915688148,0.09636455,4009.7,4009.6,1.1453]
[1758915688655,0.33856455,4009.7,4009.6,1.1453]
[1758915688852,0.09636455,4009.7,4009.6,1.1453]
[1758915689653,0.33856455,4009.7,4009.6,1.1453]
[1758915690250,0.09636455,4009.7,4009.6,1.59388]
[1758915690757,0.09636455,4009.7,4009.6,2.93157202]
[1758915691061,0.09636455,4009.7,4009.6,2.48299202]
[1758915691652,0.09636455,4009.7,4009.6,2.93157202]
[1758915691853,0.09636455,4009.7,4009.6,2.48299202]
[1758915692551,0.09636455,4009.7,4009.6,2.93157202]
[1758915692744,0.09636455,4009.7,4009.6,1.59388]
[1758915692950,0.00297985,4009.8,4009.7,0.96577]
[1758915693159,0.09958015,4009.8,4009.7,1.33487]
[1758915693455,0.00297985,4009.8,4009.7,1.33487]
[1758915694048,3.65626,4010.7,4010.6,0.2541]
[1758915694354,0.33879775,4010.7,4010.6,1.1453]
[1758915695152,0.34114538,4010.7,4010.6,1.1453]
[1758915695446,0.8388,4010.4,4010.0,1.4966989]
[1758915695646,1.28731,4010.2,4010.1,0.3691]
[1758915695851,0.93356,4009.8,4009.7,5.1745989]
[1758915696055,1.03015775,4009.8,4009.7,5.4335989]
[1758915696256,1.03015775,4009.8,4009.7,4.09]
[1758915696467,1.38395775,4009.8,4009.7,4.09]
[1758915696650,0.93539775,4009.8,4009.7,4.09]
[1758915696856,0.09659775,4009.8,4009.7,5.6966989]
[1758915697064,0.09659775,4009.8,4009.7,6.1452689]
[1758915697354,0.69072,4010.1,4010.0,0.4072]
[1758915697567,0.78722175,4010.1,4010.0,1.2984]
[1758915697753,0.33870175,4010.1,4010.0,1.2984]
[1758915697952,0.09650175,4010.1,4010.0,1.74693]
[1758915698151,0.3538,4010.9,4010.0,1.74693]
[1758915698152,1.4749,4010.9,4010.0,0.9293]
[1758915698352,0.69068,4010.5,4010.4,0.8863]
[1758915698554,0.7871964,4010.5,4010.4,1.1453]
[1758915698853,0.0965164,4010.5,4010.4,1.1453]
[1758915699052,0.7871964,4010.5,4010.4,1.1453]
[1758915699253,0.3387164,4010.5,4010.4,1.1453]
[1758915699552,0.0965164,4010.5,4010.4,1.1453]
[1758915699957,5.9353164,4010.5,4010.4,1.34300254]
[1758915700161,1.2873,4010.3,4010.2,1.34300254]
[1758915700359,1.2873,4010.3,4009.7,4.9897649]
[1758915700360,0.93356,4009.8,4009.7,3.2078]
[1758915700658,1.3838764,4009.8,4009.7,3.5769]
[1758915700861,1.3838764,4009.8,4009.7,0.259]
[1758915701360,1.3838764,4009.8,4009.7,0.6281]
[1758915702658,1.3838764,4009.8,4009.7,0.3691]
[1758915702859,1.3838764,4009.8,4009.7,0.6281]
[1758915703057,0.5815164,4009.8,4009.7,1.1425]
[1758915703364,0.70201,4010.2,4010.1,0.8911]
[1758915703556,0.79850978,4010.2,4010.1,1.1501]
[1758915703862,1.04240978,4010.2,4010.1,1.1501]
[1758915704254,0.79850978,4010.2,4010.1,1.1501]
[1758915705161,1.04240978,4010.2,4010.1,1.1501]
[1758915705362,1.40970978,4010.2,4010.1,0.8987]
[1758915705758,1.04240978,4010.2,4010.1,1.1501]
[1758915706152,1.40970978,4010.2,4010.1,0.3767]
[1758915706357,1.31323,4010.0,4009.9,1.71954601]
[1758915706662,0.94593,4010.0,4009.9,2.24154601]
[1758915707265,1.04242494,4010.0,4009.9,0.8987]
[1758915707467,1.04242438,4010.0,4009.9,0.8987]
[1758915708163,1.04242438,4010.0,4009.9,0.6397]
[1758915708362,0.44858,4009.6,4009.5,0.1531]
[1758915708558,0.70208,4009.6,4009.5,0.9265]
[1758915708758,0.94598,4009.6,4009.5,0.9265]
[1758915708956,1.46159,4009.5,4009.4,0.00309412]
[1758915709164,1.55807614,4009.5,4009.4,0.00309412]
[1758915709554,6.55807614,4009.5,4009.4,0.00309412]
[1758915710564,1.40977614,4009.5,4009.4,0.00309412]
[1758915711268,1.55807614,4009.5,4009.4,0.00309412]
[1758915711475,1.40977614,4009.5,4009.4,0.64279412]
[1758915711669,1.04247614,4009.5,4009.4,0.89419412]
[1758915711868,1.04247614,4009.5,4009.4,1.15319412]
[1758915712265,0.54507614,4009.5,4009.4,1.15319412]
[1758915712566,0.44859,4009.5,4009.4,1.15319412]
[1758915712960,3.2078,4010.1,4009.6,0.3767]
[1758915713160,0.70207,4009.8,4009.7,0.8911]
[1758915713366,0.79847407,4009.8,4009.7,0.8911]
[1758915713670,0.44854,4010.0,4009.8,0.3767]
[1758915713872,0.44854,4010.0,4009.8,0.7734]
[1758915714063,0.70204,4010.0,4009.9,0.8911]
[1758915714263,0.79844945,4010.0,4009.9,0.8911]
[1758915714963,0.09640945,4010.0,4009.9,0.8911]
[1758915715167,3.65632,4010.1,4010.0,0.1452]
[1758915715366,3.2078,4010.1,4010.0,1.0363]
[1758915716179,3.2078,4010.6,4010.5,1.0363]
[1758915716466,3.80163419,4010.6,4010.5,1.0363]
[1758915716673,3.55773419,4010.6,4010.5,1.2953]
[1758915717459,4.00620419,4010.6,4010.5,1.2953]
[1758915717865,3.2078,4010.6,4010.5,1.2953]
[1758915718178,0.45080763,4010.7,4010.6,0.8911]
[1758915718669,0.70430763,4010.7,4010.6,0.8911]
[1758915719167,0.70430763,4010.7,4010.6,1.1501]
[1758915719370,0.25584763,4010.7,4010.6,1.1501]
[1758915719560,0.00234763,4010.7,4010.6,1.1501]
[1758915720481,0.00234763,4010.7,4010.6,2.94004933]
[1758915720770,0.00234763,4010.7,4010.6,2.49157933]
[1758915722274,0.70430763,4010.7,4010.6,2.49157933]
[1758915722472,0.45080763,4010.7,4010.6,1.1501]
[1758915722782,0.00234763,4010.7,4010.6,2.68933039]
[1758915723269,0.00234763,4010.7,4010.6,2.94004933]
[1758915723669,0.00234763,4010.7,4010.6,6.59857]
[1758915725672,0.00234763,4010.7,4010.6,6.34615233]
[1758915726074,0.00234763,4010.7,4010.6,6.1501]
[1758915726370,0.00234763,4010.7,4010.6,6.59857]
[1758915726679,0.00234763,4010.7,4010.6,6.33957]
[1758915726880,0.00234763,4010.7,4010.6,6.54125809]
[1758915727074,0.00234763,4010.7,4010.6,6.80025809]
[1758915727273,0.00234763,4010.7,4010.6,6.54125809]
[1758915727472,0.00234763,4010.7,4010.6,6.80025809]
[1758915728372,4.0127,4012.1,4012.0,0.2526]
[1758915728573,0.946,4012.1,4012.0,1.2759]
[1758915729273,0.50089876,4012.1,4012.0,1.2759]
[1758915729671,0.94919876,4012.1,4012.0,1.2759]
[1758915730276,0.94919876,4012.1,4012.0,1.0169]
[1758915730475,0.94919876,4012.1,4012.0,1.2759]
[1758915730668,1.30579876,4012.1,4012.0,1.0169]
[1758915730871,1.30579876,4012.1,4012.0,1.0273]
[1758915732178,0.94919876,4012.1,4012.0,1.0273]
[1758915733993,0.50089876,4012.1,4012.0,1.0273]
[1758915734185,0.50089876,4012.1,4012.0,1.286]
[1758915734186,0.00319876,4012.1,4012.0,1.286]
[1758915734382,0.26549876,4012.1,4012.0,1.286]
[1758915734683,0.26549876,4012.1,4011.7,0.6405]
[1758915734684,1.32333,4011.8,4011.7,0.6405]
[1758915734871,0.875,4011.8,4011.5,0.1519]
[1758915735075,0.96939,4011.3,4011.2,0.6405]
[1758915735281,1.32339,4011.3,4011.2,0.8995]
[1758915735486,0.96939,4011.3,4011.2,1.1582]
[1758915736280,3.2078,4011.6,4011.2,0.7643]
[1758915736488,3.92159876,4012.1,4012.0,1.0568]
[1758915736685,3.92159876,4012.1,4012.0,1.3158]
[1758915736986,4.18029876,4012.1,4012.0,1.3158]
[1758915737384,4.53429876,4012.1,4012.0,1.3158]
[1758915737590,4.53429876,4012.1,4012.0,1.0571]
[1758915738274,4.18029876,4012.1,4012.0,1.3158]
[1758915738486,3.92159876,4012.1,4012.0,1.3158]
[1758915738677,0.26549876,4012.1,4012.0,1.3158]
[1758915738882,0.00319876,4012.1,4012.0,1.3158]
[1758915740284,0.00319876,4012.1,4012.0,1.76411]
[1758915740682,0.71379876,4012.1,4012.0,1.3158]
[1758915740881,0.26549876,4012.1,4012.0,1.3158]
[1758915741082,0.71379876,4012.1,4012.0,1.3158]
[1758915741279,0.97249876,4012.1,4012.0,0.7981]
[1758915741480,0.97249876,4012.1,4012.0,0.6529]
[1758915741481,1.32649876,4012.1,4012.0,0.6529]
[1758915741681,0.97249876,4012.1,4012.0,1.0571]
[1758915741990,1.32649876,4012.1,4012.0,0.259]
[1758915742592,0.96933,4011.8,4011.7,0.6405]
[1758915742786,1.32336,4011.6,4011.5,0.3939]
[1758915743090,0.875,4011.6,4011.5,0.8995]
[1758915743389,0.521,4011.6,4011.5,1.0571]
[1758915743583,0.96936,4011.6,4011.5,1.0571]
[1758915743785,0.96936,4011.6,4011.5,1.3158]
[1758915743988,0.96936,4011.6,4011.5,1.0568]
[1758915744192,0.96936,4011.6,4011.5,1.3158]
[1758915744583,1.32336,4011.6,4011.5,0.6529]
[1758915745283,1.32336,4011.6,4011.5,0.259]
[1758915745486,0.96941,4011.1,4011.0,0.3985]
[1758915745687,1.32341,4011.1,4011.0,0.3985]
[1758915745888,1.32341,4011.1,4011.0,1.0514]
[1758915746490,1.32341,4011.1,4011.0,0.7924]
[1758915746680,0.71075,4010.8,4010.7,3.8483]
[1758915746883,0.96945,4010.8,4010.7,4.1073]
[1758915748188,0.96945,4010.8,4010.7,4.366]
[1758915748595,0.96945,4010.8,4010.7,1.1582]
[1758915749197,0.96945,4010.8,4010.7,0.8992]
[1758915749390,3.2078,4011.4,4010.8,0.3939]
[1758915749691,0.35731942,4011.3,4011.2,0.8992]
[1758915749887,3.2078,4011.4,4011.3,0.3939]
[1758915750088,3.65618,4011.4,4011.3,0.8992]
[1758915750486,3.2078,4011.4,4011.3,0.8992]
[1758915750690,0.00319876,4012.1,4011.3,0.8992]
[1758915750691,3.2078,4011.9,4011.8,0.3939]
[1758915751000,3.65612,4011.9,4011.8,1.1582]
[1758915751297,1.32332,4011.9,4011.8,0.8995]
[1758915751485,0.00319876,4012.1,4011.8,1.1582]
[1758915751689,0.71379876,4012.1,4012.0,1.0568]
[1758915751889,0.80887045,4012.1,4012.0,1.0568]
[1758915752900,0.71379876,4012.1,4012.0,1.0568]
[1758915753097,0.71379876,4012.1,4012.0,1.3158]
[1758915753992,1.06758973,4012.1,4012.0,1.0568]
[1758915754189,1.42158973,4012.1,4012.0,0.8995]
[1758915754389,1.06758973,4012.1,4012.0,1.0571]
[1758915755295,1.06758973,4012.1,4012.0,0.7981]
[1758915755499,1.06758973,4012.1,4012.0,1.0571]
[1758915756687,1.06758973,4012.1,4012.0,0.7981]
[1758915757800,1.06758973,4012.1,4012.0,1.0568]
[1758915760195,1.32336,4011.6,4011.5,2.13917373]
[1758915760500,1.4184979,4011.6,4011.5,0.7981]
[1758915760798,0.44836,4011.6,4011.5,1.0568]
[1758915761699,3.2078,4011.8,4011.5,0.6629]
[1758915761892,3.65613,4011.8,4011.7,0.5053]
[1758915762091,3.65613,4011.8,4011.7,1.1572]
[1758915762488,3.65613,4011.8,4011.5,0.3548]
[1758915762489,1.28646,4011.6,4011.5,0.3548]
[1758915762695,1.28651,4011.1,4011.0,0.258]
[1758915762995,4.58944043,4011.1,4011.0,0.8567]
[1758915763303,4.58944043,4011.1,4011.0,1.0109]
[1758915764006,4.58944043,4011.1,4011.0,0.7529]
[1758915764201,4.58944043,4011.1,4011.0,1.0109]
[1758915765598,4.24854043,4011.1,4011.0,1.0109]
[1758915765904,4.24854043,4011.1,4011.0,1.2633]
[1758915766104,4.24854043,4011.1,4011.0,1.0053]
[1758915766801,4.32872,4011.6,4011.1,0.3548]
[1758915767107,0.94561,4011.1,4011.0,0.7529]
[1758915767294,0.94561,4011.1,4011.0,1.0053]
[1758915767494,1.28651,4011.1,4011.0,1.0109]
[1758915767904,0.94561,4011.1,4011.0,1.0109]
[1758915768299,0.44841,4011.1,4011.0,1.2633]
[1758915768501,0.4484,4011.2,4011.1,0.8511]
[1758915768693,3.2078,4011.6,4011.5,0.7529]
[1758915768694,4.15336,4011.6,4011.5,0.7529]
[1758915769002,4.58932608,4011.6,4011.5,0.3548]
[1758915769198,0.94561,4011.1,4011.0,1.2633]
[1758915769404,3.91336,4011.6,4011.5,1.0053]
[1758915769605,4.00843475,4011.6,4011.5,1.0053]
[1758915770399,3.56007475,4011.6,4011.5,1.0053]
[1758915770607,4.00843475,4011.6,4011.5,1.0053]
[1758915770907,3.30287475,4011.6,4011.5,1.0053]
[1758915771098,3.2078,4011.6,4011.5,1.0053]
[1758915772201,3.65616,4011.6,4011.5,1.0053]
[1758915772408,3.91336,4011.6,4011.5,1.2633]
[1758915772908,3.465,4011.6,4011.5,1.2633]
[1758915773107,0.3409,4012.0,4011.5,1.2633]
[1758915773108,0.2572,4011.7,4011.6,0.4963]
[1758915773302,0.70554,4011.7,4011.6,0.8511]
[1758915773808,0.70554,4011.7,4011.6,1.1091]
[1758915774011,1.02928,4011.4,4011.3,0.5987]
[1758915774306,1.28648,4011.4,4011.3,0.8567]
[1758915774702,0.94558,4011.4,4011.3,1.1091]
[1758915776005,0.44837,4011.5,4011.4,0.3548]
[1758915776308,0.44837,4011.5,4011.4,0.8511]
[1758915776501,4.93065876,4012.1,4011.6,0.3548]
[1758915776697,1.04065026,4012.0,4011.9,0.5987]
[1758915776902,1.04065026,4012.0,4011.9,0.8511]
[1758915777098,1.04065026,4012.0,4011.7,0.258]
[1758915777099,1.28643,4011.8,4011.7,0.6128]
[1758915777298,1.38156985,4011.8,4011.7,0.6128]
[1758915778002,1.38156985,4011.8,4011.7,0.3548]
[1758915778204,1.38156985,4011.8,4011.7,0.6128]
[1758915778611,1.38156985,4011.8,4011.7,0.3548]
[1758915778908,1.04066985,4011.8,4011.7,1.1091]
[1758915779309,1.38156985,4011.8,4011.7,1.1091]
[1758915779912,1.04066985,4011.8,4011.7,1.1091]
[1758915781103,0.09513985,4011.8,4011.7,1.1091]
[1758915781415,3.65929876,4012.1,4012.0,0.6505]
[1758915781601,3.65929876,4012.1,4012.0,2.79877352]
[1758915781602,3.75448051,4012.1,4012.0,2.79877352]
[1758915782002,0.00319876,4012.1,4012.0,3.05677352]
[1758915782202,0.45149876,4012.1,4012.0,3.05677352]
[1758915782410,0.00319876,4012.1,4012.0,3.05677352]
[1758915782607,0.45149876,4012.1,4012.0,2.70154781]
[1758915783109,0.00319876,4012.1,4012.0,2.70154781]
[1758915784113,0.45149876,4012.1,4012.0,1.2633]
[1758915784707,0.70869876,4012.1,4012.0,1.2633]
[1758915786608,0.70869876,4012.1,4012.0,0.8567]
[1758915786609,4.48709876,4012.1,4012.0,0.8567]
[1758915786807,4.58481922,4012.1,4011.8,1.43824781]
[1758915787003,1.24294,4011.7,4011.6,0.5861]
[1758915787204,1.24294,4011.7,4011.5,1.59244781]
[1758915787205,0.91236,4011.6,4011.5,1.59244781]
[1758915787412,4.45076,4011.6,4011.5,1.85044781]
[1758915787606,4.45076,4011.6,4011.5,2.19954781]
[1758915787910,4.45076,4011.6,4011.5,2.43654781]
[1758915788110,4.12016,4011.6,4011.5,2.68804781]
[1758915788312,4.45076,4011.6,4011.5,2.68804781]
[1758915788513,4.54845732,4011.6,4011.5,2.68804781]
[1758915788900,1.24299,4011.3,4011.2,2.02434781]
[1758915789099,1.24299,4011.3,4011.2,2.28234781]
[1758915790008,1.3406804,4011.3,4011.2,2.28234781]
[1758915790801,2.33053821,4011.3,4010.7,0.3491]
[1758915791007,0.91252,4010.1,4010.0,2.41574781]
[1758915791412,1.24312,4010.1,4010.0,2.04534781]
[1758915791613,1.34069628,4010.1,4010.0,0.258]
[1758915791818,0.44856,4009.8,4009.7,1.43824781]
[1758915792113,0.44856,4009.8,4009.7,2.18474781]
[1758915792114,0.91256,4009.8,4009.7,2.18474781]
[1758915792507,0.91256,4009.8,4009.7,2.55774781]
[1758915794903,3.2078,4010.3,4010.0,0.1519]
[1758915795106,3.89214,4010.8,4010.7,0.8655]
[1758915795307,3.2078,4010.8,4010.7,1.1235]
[1758915796212,3.2078,4011.3,4010.8,0.373]
[1758915796408,0.6843,4011.2,4011.1,0.8655]
[1758915796712,1.02146196,4011.2,4011.1,0.6126]
[1758915797017,0.2359,4010.6,4010.5,0.6444]
[1758915797217,0.6843,4011.2,4011.1,0.4925]
[1758915797419,0.6843,4011.2,4011.1,0.8655]
[1758915799213,1.252,4011.2,4011.1,0.6126]
[1758915799612,1.252,4011.2,4011.1,0.8655]
[1758915799613,0.4484,4011.2,4011.1,0.8655]
[1758915800120,0.44838,4011.4,4011.2,0.8655]
[1758915800920,3.6834,4011.3,4011.2,0.8655]
[1758915801215,4.0114,4011.3,4011.2,1.1235]
[1758915801412,3.6834,4011.3,4011.2,1.1235]
[1758915801613,4.45979,4011.3,4011.2,1.1235]
[1758915801814,4.45979,4011.3,4011.2,0.8655]
[1758915802018,4.45979,4011.3,4011.2,1.1235]
[1758915802210,4.13179,4011.3,4011.2,1.1235]
[1758915802410,3.2078,4011.3,4011.2,1.1235]
[1758915802615,3.2078,4012.3,4012.0,1.0174]
[1758915802919,1.12057,4012.8,4012.0,1.0174]
[1758915802920,0.45149876,4012.1,4012.0,1.2754]
[1758915803116,0.68739876,4012.1,4012.0,1.2754]
[1758915803315,1.25509876,4012.1,4012.0,0.373]
[1758915803512,0.42868029,4012.1,4011.5,1.0174]
[1758915803708,0.44834,4011.7,4011.6,1.1235]
[1758915805211,0.45149876,4012.1,4012.0,0.1519]
[1758915805415,0.45149876,4012.1,4012.0,1.2754]
[1758915806213,0.00319876,4012.1,4012.0,1.2754]
[1758915806420,3.65602,4012.8,4012.7,0.8655]
[1758915806620,0.44822,4012.8,4012.7,6.23791812]
[1758915806825,3.89187,4013.3,4013.2,0.4925]
[1758915807123,3.89187,4013.3,4013.2,0.8655]
[1758915807323,3.89187,4013.3,4013.2,0.86758542]
[1758915807324,3.89415838,4013.3,4013.2,0.86758542]
[1758915807724,0.68635838,4013.3,4013.2,0.86758542]
[1758915807924,0.00228838,4013.3,4013.2,0.86758542]
[1758915808115,0.4481,4013.9,4013.6,0.4925]
[1758915808320,0.4481,4013.9,4013.8,0.8655]
[1758915808623,0.44807,4014.2,4014.1,0.4925]
[1758915808823,0.68397,4014.2,4014.1,0.8655]
[1758915809219,0.68673214,4014.2,4014.1,0.8655]
[1758915810426,0.92643214,4014.2,4014.1,0.8655]
[1758915810729,1.25443214,4014.2,4014.1,0.6126]
[1758915811223,0.92643214,4014.2,4014.1,0.6126]
[1758915811415,0.68403,4013.6,4013.5,1.0174]
[1758915811817,0.92373,4013.6,4013.5,1.2754]
[1758915812024,0.44813,4013.6,4013.5,1.2754]
[1758915814327,0.68403,4013.6,4013.5,1.2754]
[1758915816621,0.68403,4013.6,4013.5,1.0174]
[1758915816821,0.68403,4013.6,4013.5,1.2754]
[1758915817022,0.44813,4013.6,4013.5,6.38981812]
[1758915817520,0.68403,4013.6,4013.5,1.2754]
[1758915819327,0.68403,4013.6,4012.9,3.2078]
[1758915819328,0.1459,4012.5,4012.0,1.33558029]
[1758915819520,0.1459,4012.5,4008.8,7.15239327]
[1758915819521,0.4484,4011.2,4011.0,0.1519]
[1758915819926,0.44845,4010.8,4010.7,0.258]
[1758915820126,0.44847,4010.6,4010.5,0.1519]
[1758915820329,0.00302031,4010.6,4010.5,3.62033387]
[1758915820526,0.44835,4011.7,4011.5,0.1519]
[1758915820727,0.44835,4011.7,4011.6,0.258]
[1758915821230,0.44841,4011.1,4011.0,0.1519]
[1758915821425,0.44841,4011.1,4011.0,0.5249]
[1758915821629,0.45157971,4011.1,4011.0,0.7839]
[1758915822028,0.45157971,4011.1,4011.0,0.5249]
[1758915822233,0.00316971,4011.1,4011.0,0.5249]
[1758915823829,0.00316971,4011.1,4011.0,0.97332]
[1758915825227,0.00316971,4011.1,4011.0,1.23232]
[1758915825835,0.00316971,4011.1,4011.0,0.7829]
[1758915828732,0.44833,4011.8,4011.0,5.7829]
[1758915829035,0.44833,4011.8,4011.6,0.3531]
[1758915829235,0.44833,4011.8,4011.7,0.258]
[1758915829535,0.44833,4011.8,4011.7,0.6111]
[1758915829735,0.45079544,4011.8,4011.7,0.6111]
[1758915830132,0.00246544,4011.8,4011.7,0.6111]
[1758915832036,0.44829,4012.2,4012.0,0.153]
[1758915832242,0.44829,4012.2,4012.1,0.6111]
[1758915833137,0.45011859,4012.2,4012.1,0.6111]
[1758915834838,0.00182859,4012.2,4012.1,0.6111]
[1758915835046,0.00182859,4012.2,4012.1,5.6111]
[1758915835245,0.00182859,4012.2,4012.1,6.0931]
[1758915835541,0.00182859,4012.2,4012.1,6.5414]
[1758915835942,0.00182859,4012.2,4012.1,6.0931]
[1758915836647,0.00182859,4012.2,4011.6,38.873]
[1758915836648,0.1448,4011.5,4011.0,1.32285831]
[1758915836944,0.1448,4011.5,4010.5,0.00263387]
[1758915836945,0.79697,4010.6,4010.5,0.00263387]
[1758915837246,9.23149735,4010.6,4010.5,0.00263387]
[1758915837641,0.3485,4010.4,4009.5,0.153]
[1758915837850,0.3485,4009.8,4009.6,0.134]
[1758915838147,0.44862,4009.3,4009.0,0.153]
[1758915838647,0.44863,4009.2,4009.1,0.3531]
[1758915838833,0.44863,4009.2,4009.1,0.6141]
[1758915839046,0.44863,4009.2,4009.1,0.3531]
[1758915839345,0.44863,4009.2,4009.1,0.6141]
[1758915840545,0.44863,4009.2,4009.1,0.3531]
[1758915840739,0.44863,4009.2,4009.1,0.6141]
[1758915840936,0.0025484,4009.3,4009.1,0.6141]
[1758915841247,0.0025484,4009.3,4009.2,0.3531]